bitfinex-derivatives/quotes_BTCF0:USTF0_20250912
["timestamp","ask_amount","ask_price","bid_price","bid_amount"]
[1757711349845,0.39826,116010.0,116000.0,0.53711]
[1757711350044,0.64826,116010.0,116000.0,0.82355]
[1757711350243,0.28746,116010.0,116000.0,1.35791348]
[1757711351140,0.64826,116010.0,116000.0,1.35791348]
[1757711351848,0.67597873,116010.0,116000.0,1.35791348]
[1757711361957,0.64826,116010.0,116000.0,1.35791348]
[1757711363965,0.64826,116010.0,116000.0,0.54147348]
[1757711364359,0.64826,116010.0,116000.0,1.35767348]
[1757711364566,0.64826,116010.0,116000.0,0.98331]
[1757711364767,0.64826,116010.0,116000.0,0.54147348]
[1757711365063,0.64826,116010.0,116000.0,1.35767348]
[1757711368170,0.39826,116010.0,116000.0,0.54147348]
[1757711368469,0.39826,116010.0,116000.0,0.34718174]
[1757711368470,0.0852461,116010.0,116000.0,0.34718174]
[1757711368769,0.8068461,116010.0,116000.0,0.34718174]
[1757711371366,0.8068461,116010.0,116000.0,0.16]
[1757711371572,0.8068461,116010.0,116000.0,0.34718174]
[1757711371872,0.8068461,116010.0,116000.0,0.18718174]
[1757711372069,0.01305,116000.0,115990.0,0.81604]
[1757711372272,0.39562,116000.0,115990.0,1.62033174]
[1757711372875,0.39562,116000.0,115990.0,1.62029174]
[1757711373373,0.39562,116000.0,115990.0,1.62129174]
[1757711373675,0.58280174,116000.0,115990.0,0.80529174]
[1757711373877,0.24984509,116000.0,115990.0,0.20818174]
[1757711374168,0.06266335,116000.0,115990.0,0.20818174]
[1757711374673,0.06266335,116000.0,115990.0,0.21529174]
[1757711374874,0.78426335,116000.0,115990.0,0.21529174]
[1757711375466,0.97144509,116000.0,115990.0,0.21529174]
[1757711375666,0.78526335,116000.0,115990.0,0.19429174]
[1757711376274,0.78426335,116000.0,115990.0,0.19429174]
[1757711376474,0.78726335,116000.0,115990.0,0.19429174]
[1757711377076,0.78826335,116000.0,115990.0,0.00711]
[1757711377374,0.78826335,116000.0,115990.0,0.19429174]
[1757711377971,0.78826335,116000.0,115960.0,1.55854793]
[1757711378176,0.01305,115970.0,115960.0,2.19854793]
[1757711378377,0.01305,115970.0,115960.0,2.82724619]
[1757711378682,0.01305,115970.0,115960.0,2.46644619]
[1757711378870,0.08362571,115970.0,115960.0,2.82724619]
[1757711379272,0.08362571,115970.0,115960.0,3.25062826]
[1757711379470,0.08362571,115970.0,115960.0,3.25362826]
[1757711380175,0.08362571,115970.0,115960.0,3.25262826]
[1757711380367,0.08362571,115970.0,115960.0,2.89182826]
[1757711381066,0.08362571,115970.0,115960.0,2.89082826]
[1757711381269,0.08362571,115970.0,115960.0,3.25162826]
[1757711381572,0.08362571,115970.0,115960.0,2.89082826]
[1757711382674,0.08362571,115970.0,115960.0,3.25162826]
[1757711383180,0.08362571,115970.0,115960.0,2.89082826]
[1757711383479,0.08362571,115970.0,115960.0,2.07494826]
[1757711383675,0.08362571,115970.0,115960.0,3.25154826]
[1757711384170,0.08362571,115970.0,115960.0,3.15154826]
[1757711384773,0.08362571,115970.0,115960.0,2.79074826]
[1757711384978,0.08362571,115970.0,115960.0,3.15154826]
[1757711385179,0.08362571,115970.0,115960.0,2.79074826]
[1757711385380,0.08362571,115970.0,115960.0,1.97494826]
[1757711385677,0.46619571,115970.0,115960.0,0.55011]
[1757711385875,0.46619571,115970.0,115960.0,1.78721207]
[1757711387076,0.46619571,115970.0,115960.0,0.96949207]
[1757711387281,0.46619571,115970.0,115960.0,1.78513207]
[1757711388078,0.46619571,115970.0,115960.0,1.78413207]
[1757711388279,0.46619571,115970.0,115960.0,1.78513207]
[1757711390273,0.07057571,115970.0,115960.0,1.78513207]
[1757711390476,0.38265183,115980.0,115960.0,1.78513207]
[1757711390774,0.40447183,115980.0,115970.0,0.42849207]
[1757711390969,0.40447183,115980.0,115970.0,1.03849207]
[1757711392584,0.47460018,115980.0,115970.0,1.03949207]
[1757711396173,0.43973018,115980.0,115970.0,1.03949207]
[1757711401386,0.47423018,115980.0,115970.0,0.61811]
[1757711401692,0.50203063,115980.0,115970.0,1.03949207]
[1757711402493,0.48103063,115980.0,115970.0,1.03949207]
[1757711403086,0.45323018,115980.0,115970.0,1.03949207]
[1757711403390,0.4810446,115980.0,115970.0,1.03949207]
[1757711403595,0.45323018,115980.0,115970.0,1.03949207]
[1757711404293,0.4811193,115980.0,115970.0,1.03949207]
[1757711404591,0.47231747,115980.0,115970.0,1.03949207]
[1757711404987,0.45881747,115980.0,115970.0,1.03949207]
[1757711405196,0.07012835,115980.0,115970.0,1.37566397]
[1757711405393,0.3608,115990.0,115970.0,1.37566397]
[1757711405692,0.38869443,115990.0,115980.0,1.23642207]
[1757711405883,0.38869443,115990.0,115980.0,1.75642207]
[1757711406088,0.3608,115990.0,115980.0,1.75642207]
[1757711406493,0.42915111,115990.0,115980.0,1.84258657]
[1757711406702,0.37378,116010.0,115990.0,0.01155]
[1757711406889,0.04952628,116010.0,116000.0,1.24686207]
[1757711407090,0.04952628,116010.0,116000.0,1.81686207]
[1757711407694,0.07052628,116010.0,116000.0,1.82413207]
[1757711407991,0.07352628,116010.0,116000.0,1.82413207]
[1757711408397,0.07452628,116010.0,116000.0,1.82413207]
[1757711408699,0.43532628,116010.0,116000.0,1.82413207]
[1757711408897,0.43532628,116010.0,116000.0,1.82337207]
[1757711409101,0.40742429,116010.0,116000.0,1.82337207]
[1757711409600,0.40642429,116010.0,116000.0,1.82337207]
[1757711409902,0.47519087,116010.0,116000.0,1.82337207]
[1757711410095,0.47519087,116010.0,116000.0,0.99849207]
[1757711410300,0.47519087,116010.0,116000.0,1.82329207]
[1757711411295,0.47519087,116010.0,116000.0,0.57711]
[1757711411504,0.47579087,116010.0,116000.0,1.82281207]
[1757711414899,0.44129087,116010.0,116000.0,1.81570207]
[1757711415201,0.45479087,116010.0,116000.0,1.81570207]
[1757711415900,0.47579087,116010.0,116000.0,0.99849207]
[1757711416208,0.47579087,116010.0,116000.0,1.82121207]
[1757711418400,0.75671225,116010.0,116000.0,0.57711]
[1757711418591,0.11499087,116010.0,116000.0,0.16711]
[1757711418795,0.25545156,116010.0,116000.0,0.53757069]
[1757711418997,0.25545156,116010.0,116000.0,0.44803138]
[1757711419699,0.47579087,116010.0,116000.0,0.44803138]
[1757711419893,0.61625156,116010.0,116000.0,0.16711]
[1757711420104,0.61625156,116010.0,116000.0,0.44803138]
[1757711423711,0.61625156,116010.0,116000.0,0.16711]
[1757711423901,0.61625156,116010.0,116000.0,0.44803138]
[1757711424407,0.47579087,116010.0,116000.0,0.44803138]
[1757711427205,0.86625156,116010.0,116000.0,0.30757069]
[1757711427410,0.86625156,116010.0,116000.0,0.44803138]
[1757711427910,0.72579087,116010.0,116000.0,0.44803138]
[1757711429809,0.86625156,116010.0,116000.0,0.44803138]
[1757711430409,0.86625156,116010.0,116000.0,0.16711]
[1757711430605,0.86625156,116010.0,116000.0,0.44803138]
[1757711430806,0.72579087,116010.0,116000.0,0.16711]
[1757711431009,0.72579087,116010.0,116000.0,0.44803138]
[1757711432316,0.7543642,116010.0,116000.0,0.44803138]
[1757711433809,0.72579087,116010.0,116000.0,0.44803138]
[1757711434317,0.7541611,116010.0,116000.0,0.58849207]
[1757711434514,0.64462179,116010.0,116000.0,0.46711]
[1757711434811,0.64462179,116010.0,116000.0,0.74092138]
[1757711435005,0.5041611,116010.0,116000.0,0.74092138]
[1757711435312,0.5041611,116010.0,116000.0,0.88138207]
[1757711435510,0.5041611,116010.0,116000.0,0.88849207]
[1757711440419,0.5041611,116010.0,116000.0,0.8415447]
[1757711441718,0.5041611,116010.0,116000.0,0.46711]
[1757711441921,0.5041611,116010.0,116000.0,0.8415447]
[1757711449226,0.5041611,116010.0,116000.0,1.6722647]
[1757711451031,0.5041611,116010.0,116000.0,0.8415447]
[1757711459750,0.5041611,116010.0,116000.0,0.46711]
[1757711459951,0.5041611,116010.0,116000.0,0.8415447]
[1757711464350,0.5041611,116010.0,116000.0,0.46711]
[1757711464545,0.5041611,116010.0,116000.0,0.8415447]
[1757711464753,0.4831611,116010.0,116000.0,1.0915447]
[1757711465056,0.4831611,116010.0,116000.0,1.27876205]
[1757711465854,0.4831611,116010.0,116000.0,1.0915447]
[1757711470450,0.4831611,116010.0,116000.0,1.9147447]
[1757711473161,0.4831611,116010.0,116000.0,1.54031]
[1757711473355,0.4831611,116010.0,116000.0,1.9147447]
[1757711474055,0.4831611,116010.0,116000.0,2.10196205]
[1757711474355,0.4696611,116010.0,116000.0,2.10196205]
[1757711475056,0.4696611,116010.0,116000.0,0.71711]
[1757711475364,0.4926711,116010.0,116000.0,2.09996205]
[1757711475558,0.4926711,116010.0,116000.0,1.9127447]
[1757711475965,0.10021681,116010.0,116000.0,1.84996205]
[1757711476462,0.10021681,116010.0,116000.0,2.09996205]
[1757711477562,0.10021681,116010.0,116000.0,2.10868441]
[1757711477862,0.3608,116020.0,116000.0,2.09996205]
[1757711478052,0.06743139,116040.0,116030.0,0.00711]
[1757711478253,0.06743139,116040.0,116030.0,1.7202247]
[1757711478454,0.03651,116040.0,116030.0,1.7202247]
[1757711479267,0.76692265,116040.0,116030.0,1.7182247]
[1757711479454,0.77192265,116040.0,116030.0,1.7182247]
[1757711479860,0.76311,116040.0,116030.0,1.7182247]
[1757711480962,0.83193459,116040.0,116030.0,1.7182247]
[1757711481264,0.005,116040.0,116030.0,2.2838834]
[1757711481452,0.001,116040.0,116030.0,2.5338834]
[1757711481651,0.003,116040.0,116030.0,2.5338834]
[1757711482059,0.003,116040.0,116030.0,2.6200108]
[1757711483359,0.003,116040.0,116030.0,2.5338834]
[1757711483664,0.003,116040.0,116030.0,1.71381805]
[1757711483866,0.003,116040.0,116030.0,2.54125805]
[1757711484766,0.003,116040.0,116030.0,1.71381805]
[1757711485068,0.003,116040.0,116030.0,2.54069805]
[1757711485266,0.003,116040.0,116030.0,2.34430605]
[1757711489070,0.003,116040.0,116030.0,2.34386605]
[1757711489467,0.003,116040.0,116030.0,1.51798605]
[1757711489770,0.003,116040.0,116030.0,2.34290605]
[1757711490467,0.003,116040.0,116030.0,1.51798605]
[1757711490773,0.003,116040.0,116030.0,2.34250605]
[1757711491076,0.003,116040.0,116030.0,1.51798605]
[1757711491370,0.003,116040.0,116030.0,2.34270605]
[1757711497574,0.003,116040.0,116030.0,2.5299234]
[1757711497869,0.003,116040.0,116030.0,1.14355135]
[1757711498077,0.003,116040.0,116030.0,2.34046605]
[1757711498266,0.003,116040.0,116030.0,1.96603135]
[1757711498463,0.003,116040.0,116030.0,2.34046605]
[1757711499366,0.003,116040.0,116030.0,2.09046605]
[1757711501575,0.06835715,116050.0,116030.0,2.3638108]
[1757711501772,0.0281251,116050.0,116040.0,0.56556205]
[1757711502078,0.01363,116060.0,116040.0,1.15556205]
[1757711502267,0.04176023,116060.0,116050.0,0.19112735]
[1757711502476,0.04176023,116060.0,116050.0,1.8115508]
[1757711502779,0.40256023,116060.0,116050.0,1.8085508]
[1757711503172,0.40756023,116060.0,116050.0,1.8085508]
[1757711503577,0.41056023,116060.0,116050.0,1.8085508]
[1757711504774,0.44084279,116060.0,116050.0,1.8081108]
[1757711504972,0.51052342,116060.0,116050.0,1.8081108]
[1757711505779,0.50161086,116060.0,116050.0,1.8081108]
[1757711514783,0.48024086,116060.0,116050.0,1.8081108]
[1757711516086,0.11944086,116060.0,116050.0,1.8081108]
[1757711516492,0.48024086,116060.0,116050.0,1.8081108]
[1757711516692,0.11944086,116060.0,116050.0,1.8081108]
[1757711517001,0.48024086,116060.0,116050.0,1.8081108]
[1757711518709,0.48024086,116060.0,116050.0,1.38735]
[1757711518892,0.48024086,116060.0,116050.0,1.8081108]
[1757711519701,0.11944086,116060.0,116050.0,1.8081108]
[1757711520995,0.11944086,116060.0,116050.0,1.5276036]
[1757711521200,0.11944086,116060.0,116050.0,1.8081108]
[1757711522504,0.48024086,116060.0,116050.0,1.8081108]
[1757711523305,0.50307086,116060.0,116050.0,0.9816708]
[1757711523505,0.50307086,116060.0,116050.0,1.8021908]
[1757711524004,0.50307086,116060.0,116050.0,1.8017508]
[1757711524595,0.50307086,116060.0,116050.0,0.9816708]
[1757711524796,0.50307086,116060.0,116050.0,1.8011908]
[1757711527601,0.50307086,116060.0,116050.0,0.9816708]
[1757711527801,0.50307086,116060.0,116050.0,1.8002308]
[1757711533108,0.50307086,116060.0,116050.0,1.81780824]
[1757711533508,0.48024086,116060.0,116050.0,1.81780824]
[1757711538415,0.11944086,116060.0,116050.0,1.81780824]
[1757711539410,0.03613023,116060.0,116050.0,2.0766067]
[1757711540211,0.008,116060.0,116050.0,2.0766067]
[1757711540407,0.008,116060.0,116050.0,2.4374067]
[1757711540812,0.008,116060.0,116050.0,2.5235193]
[1757711541517,0.3735,116080.0,116050.0,2.5235193]
[1757711541811,0.42319346,116080.0,116070.0,0.4207608]
[1757711542016,0.42319346,116080.0,116070.0,1.7992008]
[1757711542620,0.38917346,116080.0,116070.0,1.7992008]
[1757711542914,0.39017346,116080.0,116070.0,1.7992008]
[1757711543302,0.38917346,116080.0,116070.0,1.7992008]
[1757711543508,0.02937346,116080.0,116070.0,1.3415608]
[1757711543815,0.02937346,116080.0,116070.0,2.1599608]
[1757711544014,0.00104,116080.0,116070.0,2.1599608]
[1757711544610,0.00104,116080.0,116070.0,2.1609608]
[1757711545915,0.00104,116080.0,116070.0,2.4109208]
[1757711546116,0.02934023,116080.0,116070.0,2.4970186]
[1757711546319,0.00104,116080.0,116070.0,2.4109208]
[1757711546519,0.00104,116080.0,116070.0,1.5925608]
[1757711546913,0.00104,116080.0,116070.0,2.4108808]
[1757711547625,0.00104,116080.0,116070.0,1.5925608]
[1757711547920,0.00104,116080.0,116070.0,2.4108408]
[1757711548115,4e-05,116090.0,116070.0,2.51456881]
[1757711548324,0.02832762,116090.0,116080.0,0.7815608]
[1757711548622,4e-05,116090.0,116080.0,1.3415608]
[1757711549522,0.37369,116110.0,116080.0,1.4276489]
[1757711549722,0.42333939,116110.0,116100.0,0.4207608]
[1757711549919,0.42333939,116110.0,116100.0,1.0007608]
[1757711550826,0.06253939,116110.0,116100.0,1.0007608]
[1757711551216,0.06253939,116110.0,116100.0,1.8189208]
[1757711551519,0.06253939,116110.0,116100.0,1.0007608]
[1757711551718,0.42333939,116110.0,116100.0,1.8189208]
[1757711552320,0.42433939,116110.0,116100.0,1.8189208]
[1757711552826,0.39605,116110.0,116100.0,1.8189208]
[1757711553028,0.39505,116110.0,116100.0,1.8189208]
[1757711553229,0.39605,116110.0,116100.0,1.8189208]
[1757711553617,0.37469,116110.0,116100.0,1.8189208]
[1757711553816,0.37469,116110.0,116100.0,1.0007608]
[1757711554132,0.37469,116110.0,116100.0,1.8188408]
[1757711554320,0.01389,116110.0,116100.0,1.8188408]
[1757711554631,0.001,116110.0,116100.0,1.8188408]
[1757711554829,0.001,116110.0,116100.0,1.0007608]
[1757711555218,0.001,116110.0,116100.0,1.8188008]
[1757711555422,0.001,116110.0,116100.0,1.0007608]
[1757711555621,0.01389,116110.0,116100.0,1.8187608]
[1757711558131,0.01389,116110.0,116100.0,1.0007608]
[1757711558432,0.01389,116110.0,116100.0,1.8186408]
[1757711562136,0.01389,116110.0,116100.0,1.0007608]
[1757711562438,0.01389,116110.0,116100.0,1.95832569]
[1757711566030,0.04219313,116110.0,116100.0,1.95832569]
[1757711566656,0.02930313,116110.0,116100.0,1.95832569]
[1757711566857,0.04258313,116110.0,116100.0,1.95832569]
[1757711570158,0.04258313,116110.0,116100.0,1.95804569]
[1757711571249,0.04258313,116110.0,116100.0,1.14056569]
[1757711571451,0.40338313,116110.0,116100.0,1.95796569]
[1757711573658,0.40338313,116110.0,116100.0,1.14056569]
[1757711573854,0.40338313,116110.0,116100.0,1.95788569]
[1757711579971,0.40338313,116110.0,116100.0,1.14056569]
[1757711580159,0.40338313,116110.0,116100.0,1.95764569]
[1757711580359,0.40338313,116110.0,116100.0,1.95760569]
[1757711581069,0.40338313,116110.0,116100.0,1.95756569]
[1757711581465,0.40338313,116110.0,116100.0,1.14056569]
[1757711581968,0.43430452,116110.0,116100.0,1.95756569]
[1757711582573,0.43430452,116110.0,116100.0,1.14056569]
[1757711582761,0.43430452,116110.0,116100.0,1.95752569]
[1757711582963,0.43430452,116110.0,116100.0,1.95748569]
[1757711585175,0.43430452,116110.0,116100.0,1.14056569]
[1757711585365,0.43430452,116110.0,116100.0,1.95740569]
[1757711585669,0.43430452,116110.0,116100.0,1.77055046]
[1757711585670,0.45560452,116110.0,116100.0,1.77055046]
[1757711585867,0.45564452,116110.0,116100.0,1.77055046]
[1757711586074,0.45564452,116110.0,116100.0,0.95371046]
[1757711586270,0.45564452,116110.0,116100.0,1.77051046]
[1757711588478,0.45564452,116110.0,116100.0,1.95736569]
[1757711588678,0.45564452,116110.0,116100.0,1.77051046]
[1757711590281,0.45564452,116110.0,116100.0,1.95736569]
[1757711590983,0.45564452,116110.0,116100.0,1.14056569]
[1757711590984,0.43434452,116110.0,116100.0,1.14056569]
[1757711591167,0.40342313,116110.0,116100.0,1.95716569]
[1757711599275,0.37512,116110.0,116100.0,1.95716569]
[1757711600884,0.01432,116110.0,116100.0,1.95716569]
[1757711602183,0.37512,116110.0,116100.0,1.95716569]
[1757711606188,0.36184,116110.0,116100.0,1.95716569]
[1757711607589,0.36184,116110.0,116100.0,1.14056569]
[1757711607787,0.37484,116110.0,116100.0,1.95648569]
[1757711608190,0.37484,116110.0,116100.0,1.95644569]
[1757711608690,0.37484,116110.0,116100.0,1.95640569]
[1757711608890,0.37484,116110.0,116100.0,1.95636569]
[1757711614000,0.4034005,116110.0,116100.0,1.95636569]
[1757711614497,0.00104,116110.0,116100.0,1.95636569]
[1757711619298,0.01404,116110.0,116100.0,1.95636569]
[1757711622708,0.00104,116110.0,116100.0,1.95636569]
[1757711624506,0.01289,116120.0,116100.0,2.42697563]
[1757711624805,0.46740964,116130.0,116110.0,0.42037563]
[1757711625011,0.46740964,116130.0,116120.0,1.23533563]
[1757711625203,0.4762124,116130.0,116120.0,0.51]
[1757711625409,0.61633761,116130.0,116120.0,0.79025042]
[1757711625898,0.61633761,116130.0,116120.0,0.78725042]
[1757711627209,0.61633761,116130.0,116120.0,0.507]
[1757711627410,0.61633761,116130.0,116120.0,0.78725042]
[1757711628111,0.61833761,116130.0,116120.0,0.78725042]
[1757711628714,0.61833761,116130.0,116120.0,0.507]
[1757711629010,0.61833761,116130.0,116120.0,0.78725042]
[1757711629412,0.61833761,116130.0,116120.0,0.507]
[1757711629607,0.61833761,116130.0,116120.0,0.78725042]
[1757711632607,0.649259,116130.0,116120.0,0.78725042]
[1757711633610,0.899259,116130.0,116120.0,0.507]
[1757711633818,1.03938421,116130.0,116120.0,0.64712521]
[1757711634407,0.899259,116130.0,116120.0,0.64712521]
[1757711634718,0.899259,116130.0,116120.0,0.507]
[1757711634907,1.260059,116130.0,116120.0,0.64712521]
[1757711635911,1.260059,116130.0,116120.0,0.78725042]
[1757711636518,1.2884963,116130.0,116120.0,0.78725042]
[1757711637317,1.2884963,116130.0,116120.0,0.64712521]
[1757711637512,2.1026963,116130.0,116120.0,0.507]
[1757711637714,2.1026963,116130.0,116120.0,0.64712521]
[1757711638914,1.96257109,116130.0,116120.0,0.64712521]
[1757711639120,2.1026963,116130.0,116120.0,0.64712521]
[1757711639311,1.2884963,116130.0,116120.0,0.64712521]
[1757711639507,2.1026563,116130.0,116120.0,0.64712521]
[1757711639720,2.1026563,116130.0,116120.0,0.78725042]
[1757711640117,1.14837109,116130.0,116120.0,0.78725042]
[1757711640418,1.14837109,116130.0,116120.0,0.92737563]
[1757711640624,0.42677109,116130.0,116120.0,0.92737563]
[1757711641125,1.14837109,116130.0,116120.0,0.92737563]
[1757711642829,1.14837109,116130.0,116120.0,1.74125563]
[1757711645329,0.89837109,116130.0,116120.0,1.74125563]
[1757711645518,0.8674497,116130.0,116120.0,1.74125563]
[1757711647524,0.8674497,116130.0,116120.0,1.99125563]
[1757711647827,0.85864694,116130.0,116120.0,1.99125563]
[1757711648931,0.85865054,116130.0,116120.0,1.99125563]
[1757711649727,0.85865054,116130.0,116120.0,1.57088]
[1757711650025,0.85665054,116130.0,116120.0,1.99125563]
[1757711650926,0.85665054,116130.0,116120.0,1.99325563]
[1757711651927,0.13505054,116130.0,116120.0,1.99325563]
[1757711652622,0.39356156,116140.0,116120.0,2.35405563]
[1757711652823,0.39356156,116140.0,116130.0,0.42037563]
[1757711653034,0.39356156,116140.0,116130.0,1.82365563]
[1757711653325,0.39356156,116140.0,116130.0,1.01037563]
[1757711653527,0.39356156,116140.0,116130.0,1.82361563]
[1757711654029,0.46220986,116140.0,116130.0,1.82357563]
[1757711654529,0.46220986,116140.0,116130.0,1.01037563]
[1757711654729,0.46220986,116140.0,116130.0,1.82453563]
[1757711655316,0.4423383,116140.0,116130.0,1.82453563]
[1757711656430,0.4423383,116140.0,116130.0,1.82441563]
[1757711656931,0.4423783,116140.0,116130.0,1.82441563]
[1757711657134,0.45094821,116140.0,116130.0,1.82441563]
[1757711657732,0.4423783,116140.0,116130.0,1.82441563]
[1757711658734,0.45109674,116140.0,116130.0,1.82441563]
[1757711658933,0.4423783,116140.0,116130.0,1.82441563]
[1757711659335,0.4423783,116140.0,116130.0,1.01137563]
[1757711659632,0.4423783,116140.0,116130.0,1.82417563]
[1757711660134,0.4423783,116140.0,116130.0,1.82413563]
[1757711660735,0.4423783,116140.0,116130.0,1.01137563]
[1757711660932,0.4423783,116140.0,116130.0,1.82409563]
[1757711662135,0.450929,116140.0,116130.0,1.82409563]
[1757711664332,0.438039,116140.0,116130.0,1.8417175]
[1757711664534,0.077239,116140.0,116130.0,1.8417175]
[1757711666434,0.0686883,116140.0,116130.0,1.8417175]
[1757711667338,0.0686883,116140.0,116130.0,2.0917175]
[1757711668137,0.38247409,116150.0,116130.0,2.0917175]
[1757711668436,0.41071157,116150.0,116140.0,0.42037563]
[1757711668630,0.41071157,116150.0,116140.0,1.01037563]
[1757711670339,0.37384,116150.0,116140.0,1.01037563]
[1757711672639,0.44108534,116150.0,116140.0,1.01037563]
[1757711673842,0.4693257,116150.0,116140.0,1.82221563]
[1757711677038,0.1085257,116150.0,116140.0,1.82221563]
[1757711678538,0.1085257,116150.0,116140.0,1.01037563]
[1757711678748,0.3738,116160.0,116140.0,1.82189563]
[1757711678945,0.42367083,116160.0,116150.0,0.42037563]
[1757711679248,0.42367083,116160.0,116150.0,1.02037563]
[1757711679638,0.42367083,116160.0,116150.0,1.83177563]
[1757711679946,0.42467083,116160.0,116150.0,1.83177563]
[1757711680446,0.42367083,116160.0,116150.0,1.83177563]
[1757711680647,0.42467083,116160.0,116150.0,1.83177563]
[1757711680841,0.42467083,116160.0,116150.0,1.02037563]
[1757711681039,0.43332974,116160.0,116150.0,1.83169563]
[1757711681235,0.43332974,116160.0,116150.0,1.02037563]
[1757711681440,0.43332974,116160.0,116150.0,1.83165563]
[1757711682242,0.50191806,116160.0,116150.0,1.83165563]
[1757711684349,0.50191806,116160.0,116150.0,0.97341414]
[1757711684548,0.50191806,116160.0,116150.0,1.78445414]
[1757711687741,0.50191806,116160.0,116150.0,0.97341414]
[1757711688143,0.50191806,116160.0,116150.0,1.78421414]
[1757711693856,0.49325915,116160.0,116150.0,1.78421414]
[1757711695255,0.50189567,116160.0,116150.0,1.78421414]
[1757711700958,0.49325915,116160.0,116150.0,1.78421414]
[1757711701268,0.39001083,116160.0,116150.0,2.22092121]
[1757711702153,0.44292314,116170.0,116150.0,2.22092121]
[1757711702349,0.44292314,116170.0,116160.0,0.56012121]
[1757711702551,0.46416314,116170.0,116160.0,1.10012121]
[1757711703248,0.3735,116180.0,116160.0,1.35012121]
[1757711703454,0.39474,116180.0,116170.0,1.18313414]
[1757711703655,0.03394,116180.0,116170.0,1.77113414]
[1757711703867,0.03394,116180.0,116170.0,1.77313414]
[1757711704165,0.39474,116180.0,116170.0,1.77313414]
[1757711704462,0.39474,116180.0,116170.0,1.77309414]
[1757711705170,0.40328031,116180.0,116170.0,0.96341414]
[1757711705463,0.40328031,116180.0,116170.0,1.77309414]
[1757711705666,0.40428031,116180.0,116170.0,1.77309414]
[1757711706067,0.40328031,116180.0,116170.0,1.77309414]
[1757711706771,0.47368013,116180.0,116170.0,1.77309414]
[1757711707860,0.47368013,116180.0,116170.0,1.77289414]
[1757711709667,0.47368013,116180.0,116170.0,0.38670707]
[1757711709868,0.72368013,116180.0,116170.0,1.19614707]
[1757711711070,0.72368013,116180.0,116170.0,1.00944]
[1757711711271,0.72368013,116180.0,116170.0,1.19614707]
[1757711712061,0.72368013,116180.0,116170.0,0.38670707]
[1757711712267,0.03501,116150.0,116140.0,0.56479504]
[1757711712468,0.03501,116150.0,116140.0,1.80990211]
[1757711713168,0.39581,116150.0,116140.0,1.80990211]
[1757711713376,0.39581,116150.0,116140.0,1.79257414]
[1757711713674,0.39581,116150.0,116140.0,0.98341414]
[1757711713870,0.39581,116150.0,116140.0,1.79257414]
[1757711714469,0.39581,116150.0,116140.0,1.79253414]
[1757711714875,0.39581,116150.0,116140.0,1.79553414]
[1757711716072,0.39581,116150.0,116140.0,0.98641414]
[1757711716286,1.22123666,116150.0,116140.0,0.003]
[1757711718676,2.03027666,116150.0,116140.0,0.003]
[1757711719274,2.06119805,116150.0,116140.0,0.003]
[1757711719475,0.03454,116130.0,116120.0,0.18670707]
[1757711719670,0.78405959,116130.0,116120.0,0.81403121]
[1757711719874,0.37434,116140.0,116120.0,1.11403121]
[1757711720180,0.38869101,116140.0,116130.0,1.36904121]
[1757711720371,0.38869101,116140.0,116130.0,1.87904121]
[1757711720872,0.39661,116150.0,116140.0,0.00391]
[1757711721180,0.42449292,116150.0,116140.0,0.99732414]
[1757711721772,0.42449292,116150.0,116140.0,1.18403121]
[1757711721971,0.39661,116150.0,116140.0,0.99732414]
[1757711722174,0.42448832,116150.0,116140.0,0.99732414]
[1757711722576,0.42448832,116150.0,116140.0,0.99832414]
[1757711724876,0.42448832,116150.0,116140.0,1.80712414]
[1757711725579,0.39661,116150.0,116140.0,1.80712414]
[1757711725880,0.42448354,116150.0,116140.0,1.19700414]
[1757711727074,0.61119061,116150.0,116140.0,0.18770707]
[1757711727266,0.86119061,116150.0,116140.0,0.18770707]
[1757711727470,0.67448354,116150.0,116140.0,0.18770707]
[1757711729672,0.86119061,116150.0,116140.0,0.001]
[1757711735783,0.86123061,116150.0,116140.0,0.001]
[1757711737272,0.892152,116150.0,116140.0,0.001]
[1757711739288,0.642152,116150.0,116140.0,0.001]
[1757711741290,1.450272,116150.0,116140.0,0.001]
[1757711741490,1.450272,116150.0,116140.0,0.18770707]
[1757711742385,1.3096274,116150.0,116140.0,0.18770707]
[1757711742587,1.49633447,116150.0,116140.0,0.001]
[1757711742790,0.68821447,116150.0,116140.0,0.18770707]
[1757711742977,1.49633447,116150.0,116140.0,0.18770707]
[1757711743478,1.49625447,116150.0,116140.0,0.18770707]
[1757711743886,1.49621447,116150.0,116140.0,0.18770707]
[1757711744290,1.46529308,116150.0,116140.0,0.18770707]
[1757711744590,0.65729308,116150.0,116140.0,0.18770707]
[1757711744792,1.46529308,116150.0,116140.0,0.18770707]
[1757711746086,0.65729308,116150.0,116140.0,0.18770707]
[1757711746299,1.46525308,116150.0,116140.0,0.18770707]
[1757711746494,1.4185774,116150.0,116140.0,0.14111139]
[1757711747490,1.27846601,116150.0,116140.0,0.14111139]
[1757711747686,1.4185774,116150.0,116140.0,0.14111139]
[1757711748386,1.55868879,116150.0,116140.0,0.14111139]
[1757711749492,0.75080879,116150.0,116140.0,0.14111139]
[1757711749693,0.47058601,116150.0,116140.0,0.42524417]
[1757711749895,1.27830601,116150.0,116140.0,0.28513278]
[1757711751094,0.47058601,116150.0,116140.0,0.28513278]
[1757711751296,1.2631611,116150.0,116140.0,0.42524417]
[1757711751496,0.4554411,116150.0,116140.0,0.67524417]
[1757711751686,0.50150357,116150.0,116140.0,0.67524417]
[1757711752088,0.4554411,116150.0,116140.0,1.22524417]
[1757711755100,0.42452354,116150.0,116140.0,1.22524417]
[1757711755400,0.40248354,116150.0,116140.0,1.22524417]
[1757711759003,0.40248354,116150.0,116140.0,2.03248417]
[1757711760107,0.40248354,116150.0,116140.0,1.22524417]
[1757711760307,0.42519354,116150.0,116140.0,0.80491]
[1757711760508,0.42519354,116150.0,116140.0,2.03240417]
[1757711762225,0.42519354,116150.0,116140.0,2.03236417]
[1757711762420,0.42519354,116150.0,116140.0,2.03228417]
[1757711762621,0.42519354,116150.0,116140.0,2.03224417]
[1757711764223,0.40248354,116150.0,116140.0,2.03224417]
[1757711764418,0.38871354,116150.0,116140.0,2.03224417]
[1757711765107,0.40156354,116150.0,116140.0,2.03224417]
[1757711767822,0.40156354,116150.0,116140.0,1.22524417]
[1757711768021,0.42427354,116150.0,116140.0,0.80491]
[1757711768220,0.42427354,116150.0,116140.0,2.03192417]
[1757711768410,0.42427354,116150.0,116140.0,1.61159]
[1757711768815,0.42427354,116150.0,116140.0,2.03192417]
[1757711770216,0.42427354,116150.0,116140.0,1.22524417]
[1757711770421,0.42427354,116150.0,116140.0,2.03192417]
[1757711771520,0.42427354,116150.0,116140.0,1.22524417]
[1757711772023,0.3964,116150.0,116140.0,2.03172417]
[1757711775826,0.3964,116150.0,116140.0,1.22524417]
[1757711776128,0.3964,116150.0,116140.0,2.03152417]